Cogmind - Beta 16.1 @@@ ROGUE MODE // 2026.02.12 @ 14:07:27 Player: Megaknight51 Result: Destroyed by P7-5NN(j) with Overtuned Pulse Rifle Performance ------------- Evolutions (0) 0 Regions Visited (3) 600 Robots Destroyed (31) 155 Value Destroyed (910) 910 Prototype IDs (13) 260 Alien Tech Used (0) 0 Bonus (-18) -18 TOTAL SCORE: 1907 Bonus ------- Friendly Fire -18 Cogmind --------- Core Integrity 0/250 Matter 102/300 Energy 100/100 System Corruption 3% Temperature Cool (27) Movement Treading (240) Ox1 Location -9/Recycling Parts ------- > --- POWER (1) -------- (None) > --- PROPULSION (2) --- Light Treads > --- UTILITY (2) ------ Large Storage Unit Authchip [Device] > --- WEAPON (2) ------- Slug Cannon > --- INVENTORY (15) --- (None) Peak State ------------ > --- POWER ------------ (None) > --- PROPULSION ------- Light Treads Light Treads > --- UTILITY ---------- Large Storage Unit Makeshift Light Armor Plating > --- WEAPON ----------- Light Cannon Slug Cannon > --- INVENTORY -------- SUBCON Basin [Rating: 30] Favorites ----------- Power Ion Engine Engine Ion Engine Propulsion Light Treads Treads Light Treads Utility Large Storage Unit Device Disposable Heat Sink Storage Large Storage Unit Hackware Authchip [Device] Protection Makeshift Light Armor Plating Weapon Grenade Launcher Energy Gun Medium Laser Ballistic Gun Subdweller Machine Gun Ballistic Cannon Light Cannon Launcher Grenade Launcher Special Weapon Mining Laser Build | -11 -10 -10 -9 ------- Run | Yrd Mat Sub Rec Slots Evolved . | . . . . Power . | . . . . Propulsion . | . . . . Utility . | . . . . Weapon . | . . . . Parts Attached 26 | 6 4 14 2 Power 3 | 1 . 2 . Engine 3 | 1 . 2 . Core . | . . . . Reactor . | . . . . Propulsion 4 | 2 . 1 1 Treads 4 | 2 . 1 1 Leg . | . . . . Wheel . | . . . . Hover . | . . . . Flight . | . . . . Utility 7 | 1 2 3 1 Device 1 | . . 1 . Storage 3 | 1 2 . . Processor . | . . . . Hackware 1 | . . . 1 Protection 2 | . . 2 . Artifact . | . . . . Weapon 12 | 2 2 8 . Energy Gun 2 | 2 . . . Energy Cannon . | . . . . Ballistic Gun 1 | . . 1 . Ballistic Cannon 2 | . . 2 . Launcher 6 | . 2 4 . Special Weapon 1 | . . 1 . Impact Weapon . | . . . . Slashing Weapon . | . . . . Piercing Weapon . | . . . . Special Melee Weapon . | . . . . Unidentified Prototypes . | . . . . Corrupted Parts 1 | . . . 1 System Corruption 1 | . . . 1 Parts Lost 10 | . . 8 2 Power 1 | . . 1 . Propulsion 3 | . . 2 1 Utility . | . . . . Weapon 6 | . . 5 1 Highest Loss Streak 3 | . . 3 2 To Critical Strikes . | . . . . Average Backups 8 | . 6 10 . Power . | . 1 . . Propulsion 1 | . 1 2 . Utility 2 | . 1 3 . Weapon 3 | . 2 4 . Tool/Special . | . . . . Unused Backups 11 | . 1 10 . Power . | . . . . Propulsion 2 | . . 2 . Utility 7 | . 1 6 . Weapon 2 | . . 2 . Tool/Special . | . . . . Average Slot Usage (%) 85 | . 85 85 82 Engine 9 | . 14 10 . Treads 21 | . 28 19 26 Storage 14 | . 14 14 14 Protection 9 | . . 11 5 Energy Gun 2 | . 20 . . Ballistic Cannon 8 | . . 6 28 Launcher 15 | . 7 18 . Special Weapon 1 | . . 1 . Peak Build Rating 30 | 6 7 29 30 Average Rating 13 | 4 6 13 27 On Entrance 10 | . 6 7 29 Avg Prop Armor Cover (%) . | . . . . Naked Turns . | . . . . Heaviest Build 40 | 11 29 40 34 Greatest Support 40 | 40 40 40 40 Greatest Overweight (x) 1 | . . 1 1 Average Overweight (x) . | . . . . Largest Inventory Capacity 15 | 8 15 15 15 Average Capacity 14 | 7 10 15 15 Most Carried 15 | 1 13 15 15 Average Carried 12 | . 6 14 13 Final Capacity 15 | 8 15 15 15 Final Carried 15 | 1 12 15 . Class Distribution -------------------- 100% | Mutant Dominant Class ---------------- Mutant | -10/Materials Mutant | -10/Subcaves Mutant | -9/Recycling Resources | -11 -10 -10 -9 ----------- Run | Yrd Mat Sub Rec Matter Collected 1250 | 218 82 830 120 Remotely . | . . . . Salvage Created 589 | . 150 371 68 Parts 47 | . 13 28 6 Haulers Intercepted 1 | . 1 . . Recyclers Shooed . | . . . . Parts Field Recycled . | . . . . Retrieved Matter . | . . . . Parts Self-Destructed 10 | . . 10 . Prevented . | . . . . Parts Restored . | . . . . Kills | -11 -10 -10 -9 ------- Run | Yrd Mat Sub Rec Combat Hostiles Destroyed 26 | . 5 20 1 Guns 4 | . 3 1 . Cannons 2 | . . 1 1 AOE 20 | . 2 18 . Classes Destroyed 8 | . 5 2 1 Worker 1 | . 1 . . Tunneler 1 | . 1 . . Hauler 1 | . 1 . . Turret 2 | . . 2 . Swarmer 7 | . 3 4 . Grunt 2 | . 2 . . Subdweller 16 | . . 16 . Scrapper 1 | . . . 1 Best Kill Streak 7 | . 4 7 1 Combat Bots Only 5 | . 3 5 1 Max Kills in Single Turn 2 | . 2 2 1 Gunslinging . | . . . . Exploded 2 | . 1 2 . Melee . | . . . . Uniques/NPCs Destroyed . | . . . . Combat | -11 -10 -10 -9 -------- Run | Yrd Mat Sub Rec Hostile Shots Fired 101 | . 22 65 14 Missed 28 | . 6 19 3 Hits 73 | . 16 46 11 Projectile 73 | . 16 46 11 AOE 1 | . . 1 . Critical Strikes 3 | . . 1 2 Damage Taken 1855 | . 158 1449 248 Core 260 | . 21 198 41 Absorbed by Shields . | . . . . Core Remaining (%) 100 | 100 . . . Volleys Fired 70 | . 20 47 3 Largest 2 | . 2 2 2 Hottest 100 | . 90 100 70 Shots Fired 124 | . 38 81 5 Gun 30 | . 29 1 . Cannon 15 | . . 10 5 Launcher 66 | . 9 57 . Special 13 | . . 13 . Kinetic 21 | . . 16 5 Thermal 42 | . 29 13 . Explosive 61 | . 9 52 . Electromagnetic . | . . . . Robot Hit Streak 9 | . 6 9 6 Robot Miss Streak 4 | . 4 2 2 Penetration Max . | . . . . Secondary Targets . | . . . . Shots Hit Robots 63 | . 23 37 3 Core Hits 62 | . 15 46 1 Critical Kills 1 | . . . 1 Critical Parts Destroyed . | . . . . Critical Strikes 2 | . . 1 1 Destroy 1 | . . . 1 Blast 1 | . . 1 . Melee Attacks . | . . . . Impact . | . . . . Slashing . | . . . . Piercing . | . . . . Sneak Attacks . | . . . . Combat Hostiles . | . . . . Follow-up Attacks . | . . . . Damage Inflicted 3231 | . 672 2468 91 Guns 224 | . 198 26 . Cannons 214 | . . 136 78 Explosions 2780 | . 474 2306 . Melee . | . . . . Ramming 13 | . . . 13 Kinetic 514 | . . 436 78 Thermal 198 | . 198 . . Explosive 2506 | . 474 2032 . Electromagnetic . | . . . . Impact . | . . . . Slashing . | . . . . Piercing . | . . . . Highest Corruption 3 | . 2 2 3 Average Corruption 2 | . 2 2 2 Corruption Purged . | . . . . Corruption Blocked . | . . . . Effects 72 | . 9 53 10 Message Errors 22 | . 2 19 1 Matter Fused 15 | . 1 10 4 Heat Flow Errors 8 | . 1 7 . Energy Discharges 9 | . 2 7 . Parts Fused 1 | . . 1 . Data Loss (minor) 5 | . 1 3 1 Data Loss (major) 4 | . . 2 2 Misfires 4 | . . 3 1 Alerts 2 | . . 1 1 Weapon Failures 2 | . 2 . . Overload Shots . | . . . . Overflow Damage 71 | . 8 63 . Projectiles . | . . . . Explosions 71 | . 8 63 . Melee . | . . . . Knockbacks 2 | . . 1 1 Impact . | . . . . Kinetic 2 | . . 1 1 Secondary . | . . . . Self-Inflicted Damage 497 | . . 497 . Shots 22 | . . 22 . Rammed 6 | . . 1 5 Targets Rammed 6 | . . 1 5 Kicked . | . . . . Crushed . | . . . . Highest Temperature 222 | . 184 222 25 Average Temperature 69 | . 62 93 16 Received Heat Transfer 437 | . 54 201 182 Siege Activations . | . . . . Martial Activations . | . . . . Shielding Activations . | . . . . Robots Disrupted . | . . . . Combat Hostiles . | . . . . Robots Corrupted . | . . . . Combat Hostiles . | . . . . Parts Fried . | . . . . Impact Corruptions . | . . . . Robots Melted . | . . . . Combat Hostiles . | . . . . Parts Melted 1 | . 1 . . Heat Transferred 520 | . 520 . . Parts Sabotaged . | . . . . Parts Stolen . | . . . . Parts Stripped . | . . . . Power Chain Reactions . | . . . . Alert | -11 -10 -10 -9 ------- Run | Yrd Mat Sub Rec Maximum Alert Level . | . . . . Low Security (%) 100 | 100 100 . 100 Level 1 . | . . . . Level 2 . | . . . . Level 3 . | . . . . Level 4 . | . . . . Level 5 . | . . . . High Security . | . . . . Max Security . | . . . . Peak Influence 90 | . 90 . . Initial . | . . . . Average 11 | . 23 . . Influence Increases 352 | . 187 165 . Destroy 0b10 Robot/C 220 | . 100 120 . Destroy 0b10 Robot/NC 15 | . 15 . . Destroy Leader 22 | . 22 . . Destroy Structure 20 | . 20 . . Lose Combat Pursuer 75 | . 30 45 . Influence Decreases 352 | . 155 197 . Entered New Map 16 | . . 16 . Time Decay 336 | . 155 181 . Squads Dispatched . | . . . . Investigation . | . . . . Extermination . | . . . . Reinforcement . | . . . . Assault . | . . . . Garrison . | . . . . Intercept . | . . . . Searches Triggered . | . . . . Construction Impeded . | . . . . Haulers Reinforced . | . . . . Active Scanning Responses . | . . . . Cargo Convoy Interrupts . | . . . . Stealth | -11 -10 -10 -9 --------- Run | Yrd Mat Sub Rec Distress Signals . | . . . . Communications Jammed . | . . . . Distress Signals . | . . . . Times Spotted 35 | . 11 22 2 Peak Tracking Total 5 | . 5 5 4 Tactical Retreats 2 | . 1 1 . Traps | -11 -10 -10 -9 ------- Run | Yrd Mat Sub Rec Traps Triggered 1 | . 1 . . Indirectly . | . . . . Trap Hack Attempts . | . . . . Triggered . | . . . . Disarmed . | . . . . Reprogrammed . | . . . . Reused . | . . . . Traps Extracted . | . . . . Installed . | . . . . Triggered . | . . . . Machines | -11 -10 -10 -9 ---------- Run | Yrd Mat Sub Rec Machines Disabled 4 | . . 3 1 Max in Single Turn 2 | . . 2 1 Machines Repaired . | . . . . Machines Dismantled . | . . . . Machines Sabotaged . | . . . . Overloaded Fab Kills . | . . . . Hacking | -11 -10 -10 -9 --------- Run | Yrd Mat Sub Rec Machines Accessed 7 | . 1 4 2 Terminals 1 | . 1 . . Fabricators . | . . . . Repair Stations . | . . . . Recycling Units . | . . . . Scanalyzers . | . . . . Garrison Access . | . . . . Total Hacks 17 | . 2 8 7 Successful 16 | . 1 8 7 Failed . | . . . . Catastrophic . | . . . . Database Lockouts 1 | . 1 . . Manual 2 | . 2 . . Terminals 2 | . 2 . . Fabricators . | . . . . Repair Stations . | . . . . Recycling Units . | . . . . Scanalyzers . | . . . . Garrison Access . | . . . . Terminal Hacks 16 | . 1 8 7 Record 12 | . . 5 7 Robot Analysis 1 | . 1 . . Open Door 1 | . . 1 . Proto ID Catalog 1 | . . 1 . Release Object 1 | . . 1 . Fabricator Hacks . | . . . . Repair Station Hacks . | . . . . Recycling Unit Hacks . | . . . . Scanalyzer . | . . . . Garrison Access Hacks . | . . . . Unauthorized Hacks . | . . . . Terminals . | . . . . Fabricators . | . . . . Repair Stations . | . . . . Recycling Units . | . . . . Scanalyzers . | . . . . Garrison Access . | . . . . Data Cores Recovered . | . . . . Used . | . . . . Hacking Detections 1 | . 1 . . Full Trace Events . | . . . . Feedback Events . | . . . . Feedback Blocked . | . . . . Robot Schematics Acquired . | . . . . Robots Built . | . . . . Authchips . | . . . . Time . | . . . . Total Robot Build Rating . | . . . . Part Schematics Acquired . | . . . . Parts Built . | . . . . Authchips . | . . . . Time . | . . . . Total Part Build Rating . | . . . . Part Studies Acquired . | . . . . Parts Repaired . | . . . . Time . | . . . . Parts Recycled . | . . . . Recycled Matter . | . . . . Retrieved Matter . | . . . . Retrieved Components . | . . . . Parts Scanalyzed . | . . . . Part Schematics Acquired . | . . . . Parts Damaged . | . . . . Bothacking | -11 -10 -10 -9 ------------ Run | Yrd Mat Sub Rec Used RIF Installer . | . . . . Robots Hacked . | . . . . Non-combat . | . . . . Combat . | . . . . Robot Hacks Applied . | . . . . Relay Couplers Released . | . . . . Fabnet Peak Effective % . | . . . . Robots Rewired . | . . . . Allies Hacked . | . . . . Hacks Repelled . | . . . . Allies | -11 -10 -10 -9 -------- Run | Yrd Mat Sub Rec Total Allies . | . . . . Largest Group . | . . . . Highest-Rated Group . | . . . . Highest-Rated Ally . | . . . . Total Orders . | . . . . Ally Attacks . | . . . . Total Damage . | . . . . Kills . | . . . . Allies Corrupted . | . . . . Allies Melted . | . . . . Intel | -11 -10 -10 -9 ------- Run | Yrd Mat Sub Rec Active Infowar (turns) . | . . . . Robot Analysis Total 1 | . 1 . . Derelict Logs Recovered 2 | . . 2 . Drone Launches . | . . . . Drone Recoveries . | . . . . Exploration | -11 -10 -10 -9 ------------- Run | Yrd Mat Sub Rec Turns Passed 5363 | 82 703 3978 600 Spaces Moved 2610 | 52 386 1853 319 Core 9 | 9 . . . Treads 2601 | 43 386 1853 319 Legs . | . . . . Wheels . | . . . . Hover . | . . . . Flight . | . . . . Fastest Speed 50 | 50 160 160 160 Average Speed 187 | 140 160 198 164 Slowest Speed 240 | 160 160 240 240 Overloaded Moves . | . . . . Propulsion Burnouts . | . . . . Robots Hopped . | . . . . Potential Cave-ins . | . . . . Cave-ins Triggered . | . . . . Exploration Rate (%) 47 | 3 55 82 49 Regions Visited 3 Branch Regions 2 Pre-discovered Areas 2 | . . 2 . Known Exits Taken . | . . . . Unknown Exits Taken 3 | 1 1 1 . Scrap Searched 8 | . . 8 . Spaces Dug 8 | . . 8 . Terrain Destroyed 283 | . 27 256 . Melee . | . . . . Projectile 4 | . . 4 . AOE 279 | . 27 252 . Terrain Rammed . | . . . . Walls Destroyed . | . . . . Machines Disabled . | . . . . Actions | -11 -10 -10 -9 --------- Run | Yrd Mat Sub Rec Total 2917 | 58 432 2040 387 Wait 140 | . 6 80 54 Move 2607 | 51 385 1852 319 Hop . | . . . . Pick Up 24 | 1 12 10 1 Fast Attach 13 | 6 2 3 2 Attach 7 | . . 7 . Detach 3 | . 2 1 . Swap 22 | . 2 20 . Drop 25 | . 3 19 3 Fire 70 | . 20 47 3 Melee . | . . . . Ram . | . . . . Kick . | . . . . Crush 6 | . . 1 5 Escape Stasis . | . . . . Rewire . | . . . . Trap . | . . . . Miscellaneous . | . . . . Route ------- -11/Scrapyard -10/Materials (discovered 3 exits: [*Mat] / [*Min] / *Sub) -10/Subcaves (discovered 3 exits: *Mat x2 / *Rec) -9/Recycling (discovered 1 exit: [*Fac]) History --------- Turn | Location | Event 7 | -11/Scrapyard | Discovered new exit (range 14) 83 | -11/Scrapyard | Entered Materials 164 | -10/Materials | Central database locked down 196 | -10/Materials | Discovered new exit (range 5) 274 | -10/Materials | Discovered new exit (range 8) 312 | -10/Materials | Build established: Mutant 780 | -10/Materials | Discovered new exit (range 3) 786 | -10/Materials | Entered Subcaves 892 | -10/Subcaves | Shifting Twisted Machinery released Sub. Laser 894 | -10/Subcaves | Shifting Twisted Machinery released Sub. Power Source 930 | -10/Subcaves | Discovered new exit (range 8) 1060 | -10/Subcaves | Discovered new exit (range 12) 1441 | -10/Subcaves | Shifting Twisted Machinery released Mak. Light Armor Plating 1442 | -10/Subcaves | Shifting Twisted Machinery released Sub. Laser 1473 | -10/Subcaves | A swath of the cavern ceiling suddenly collapsed 1556 | -10/Subcaves | Disturbed a concealed Subdweller 1722 | -10/Subcaves | Learned location of Zion (-6) 1722 | -10/Subcaves | Met a Zionite searching for "candidates" 1742 | -10/Subcaves | Identified exit to Materials 2518 | -10/Subcaves | Lost 3 parts (2n1w) 2841 | -10/Subcaves | Core integrity fell below 50% 3086 | -10/Subcaves | Shifting Twisted Machinery released Sub. Shrapnel Launcher 3276 | -10/Subcaves | Disturbed a concealed Subdweller 3571 | -10/Subcaves | Visited Clippyterm 3578 | -10/Subcaves | Learned location of Deep Caves (-6) 3578 | -10/Subcaves | Learned 40 Factory zone layouts 3833 | -10/Subcaves | Ambushed by Subdweller buried in earth 3862 | -10/Subcaves | Core integrity fell below 20% 3889 | -10/Subcaves | Learned Materials terminal intel 3899 | -10/Subcaves | Visited 4L-MR0's lab 4132 | -10/Subcaves | Found SUBCON Basin 4764 | -10/Subcaves | Entered Recycling 5077 | -9/Recycling | Discovered new exit (range 16) 5197 | -9/Recycling | Scanned before Scraplab entrance 5221 | -9/Recycling | Entered Scraplab 5346 | -9/Recycling | Angered Scraplab inhabitants 5364 | -9/Recycling | Destroyed by P7-5NN(j) with Overtuned Pulse Rifle Last Messages --------------- confirmed via controlled experimentation. >>Record "SE/01. Armor Interaction" In the interest of ensuring survival of the Scrap Engine under harsh conditions, we have taught the subatomizers the importance of self-preservation and protecting their "home", which has apparently convinced them to consume armor to help protect it. 05307_ AF-3U2(c) is busy at their terminal. 05308_ Dropped SUBCON Basin. 05334_ AF-3U2(c) is busy at their terminal. 05346_ System corrupted: FCS attempts to trigger Lgt. Cannon. 05346_ System corrupted: Lgt. Cannon misfires. 05346_ AF-3U2(c) knocked back. 05348_ RY-JSW(j): "Defend the Scraplab!" 05348_ Critical hit (Burn: +50). 05350_ Lgt. Treads destroyed. 05350_ Slammed into RY-JSW(j). 05357_ Critical hit (Burn: +50). 05358_ RY-JSW(j) suffers critical hit (Destroy). 05358_ RY-JSW(j) destroyed. 05360_ Lgt. Cannon destroyed. Map ----- +----------------------------------------------------+ | | | | | | | | | | | | | | | | | | | | | | | | | | | | | | | | | | | | | | | | | | | | | | | | | ????????????????############?????????????????????? | | ????????????????#"""""""#@%#?????????????????????? | | ????????????????# " X ##j#?????????????????????? | | ??????????####### % %#?????????????????????? | | ?????????## + #?????????????????????? | | ?????????# ##### & "#?????????????????????? | | ?????????## #???# ""#?????????????????????? | | ??????????# #???#"& "& X ""#?????????????????????? | | ??????????# #???#"""""""" #?????????????????????? | | ???????#####################?????????????????????? | | ???????# #?????????????????????????????????? | | ???????# #?????????????????????????????????? | | ???????# #???????????##################????? | | ???????# #???????????# #????? | | ???????####+####???????????# #????? | | ??????????# #######????????# #????? | | ??????????# #????????# #????? | | ??????????# #????????# #????? | | ??????????# #????????# ##???? | | ?????????#######+########### #???? | | ?????????+ + # #????? | | ?????????# # # #????? | | ?????????# # ##+###+################ | | ?????????# / | | ?????????# # ######## | | ?????????# # #?######+## | +----------------------------------------------------+ Best States ------------- Heat Dissipation 25 Energy Generation 15 Energy Capacity 250 Matter Stores 300 Matter Capacity 300 Sight Range 16 Terrain Scan Density 10 Armor Coverage 100 Evasion (%) 40 Recoil Reduction 2 Authchip Count 1 Item Schematics ----------------- None Robot Schematics ------------------ None Fabricated ------------ Nothing Repaired ---------- Nothing Studied --------- None Alien Tech Used ----------------- None Achievements -------------- None Challenges ------------ None Game ------ Seed ReactiveTerrabombMegatreads Manual? 0 Play Time 00:20:44 Cumulative 62.5 hours Start 2026.02.12 @ 13:49:08 End 2026.02.12 @ 14:07:27 Sessions 1 Manual Loads 0 Difficulty Rogue Special Mode None Game No. 134 Rogue 134 Adventurer 0 Explorer 0 Win Type - Total 0 Types 0/0/0/0/0/0/0/0/0/0 Lore% 40 Gallery% 32 Achievement% 30 Wizard Run 0 Options --------- Layout 0 ASCII 0 Keyboard 1 Movement Arrows Keybinds 0 Fullscreen 1 Font 18/Smallcaps Map View 38x25 Zoom Use 72% Tactical HUD 1 Map Filters NONE Filters NONE Steam 1 RUN: e3e4af7e-bcda-4331-a070-6cf565e31b59